{"text_format":"2","workbook":"xlsx","n_sheets":2,"sheets":["购买,复用,自制评价表","评价指南"],"not_rendered":{"charts":0,"images":1,"macros":0,"external_links":0,"defined_names":0,"comments":0,"pivot_tables":0},"unopened":[],"bounds":{"document_bytes":16777216,"sheet_cells":100000,"run_cost":"one","rows_first":2000,"rows_last":500,"rows_between":2000,"halvings":0,"cell_chars":16384,"cell_head_chars":4096},"cells_cut":0,"cells_raw":0,"read":"whole","date_system":"1900"}

{"sheet":"购买,复用,自制评价表","index":0,"n_rows":15,"n_cols":11,"rows_kept":15,"cut":false,"hidden":false,"merged":[[0,0,0,3],[4,1,4,2],[5,1,5,2],[6,1,6,2],[7,1,7,2],[8,1,8,2],[9,1,9,2],[10,1,10,2]]}
["购买,复用,自制评价表"]
["评价人",null,"项目名称"]
["评价时间",null,"文件编码"]
[]
["评价项","指南",null,"本项目情况备注"]
["是否有统一的基础技术平台","如果有公司统一的平台，则明确进行资产复用",null,"目前代码资产没有得到整理，没有可复用的统一技术平台","否","否","否","否","否","否","否"]
["是否有以前复用的资产","如果有能够复用程序,则明确进行资产复用",null,"目前代码资产没有得到整理，没有用户管理模块可复用","否","否","否","否","否","否","否"]
["是否属于定制化开发","如果为定制化开发，需要公司内部自制",null,"除系统管理外的大部分功能模块必须定制化开发","是","是","是","是","是","是","是"]
["客户提供的时间不充裕","如果提供的时间不足，需要采用购买方式",null,"客户提供了足够的时间","否","否","否","否","否","否","否"]
["客户需求不清晰","如果客户需求不够清晰，采用购买方式",null,"客户的需求足够清晰","否","否","否","否","否","否","否"]
["客户提供的预算不足","如果提供的预算不足，采用购买方式",null,"客户提供了足够的预算","否","否","否","否","否","否","否"]
[null,null,null,"“复用”的评价项数量",{"$f":"COUNTIF(E6:E7,\"是\")","v":0},{"$f":"COUNTIF(F6:F7,\"是\")","v":0},0,0,0,0,0]
[null,null,null,"“自制”的评价项数量",{"$f":"COUNTIF(E8:E8,\"是\")","v":1},1,1,1,1,1,1]
[null,null,null,"“购买”的评价项数量",{"$f":"COUNTIF(E10:E11,\"是\")","v":0},0,0,0,0,0,0]
[null,null,null,"评价结果","自制",{"$f":"IF(COUNTIF(F6:F7,\"是\")>0,\"复用\",IF(F8=\"是\",\"自制\",IF(COUNTIF(F9:F11,\"是\")>0,\"购买\",\"自制\")))","v":"自制"},"自制","自制","自制","自制","自制"]

{"sheet":"评价指南","index":1,"n_rows":12,"n_cols":2,"rows_kept":12,"cut":false,"hidden":false,"merged":[[8,0,8,1],[9,0,9,1],[10,0,10,1],[11,0,11,1]]}
["评价项","指南"]
["是否有统一的基础技术平台","如果有公司统一的平台，则明确进行资产复用"]
["是否有以前复用得资产","如果有能够复用程序，则明确进行资产复用"]
["是否属于定制化开发","如果为定制化开发，需要公司内部自制"]
["客户是否提供了足够的时间","如果提供的时间不足，需要采用购买方式"]
["客户需求是否足够清晰","如果客户需求不够清晰，采用购买方式"]
["客户提供的预算是否足够","如果提供的预算不足，采用购买方式"]
[]
["评价准则"]
["当有可复用资产时，优先考虑复用；否则，当属于定制化开发时，只能进行自制"]
["当上述条件不满足时，如果客户提供的时间、预算不足，或者需求不清晰，则考虑购买"]
["当上述条件均不满足时，则考虑自制，以便为后续项目提供可复用资产。"]